[Event "Titled Tuesday Blitz November 14 Early 2023"]
[White "Derjabin, Ilja"]
[Black "Vignesh N R"]
[WhiteFideId "14104768"]
[BlackFideId "25012215"]
[WhiteElo "2578"]
[BlackElo "2811"]
[Result "0-1"]
[Round "5"]
[TimeControl "180+1"]
[Date "2023.11.14"]
[WhiteClock "0:00:05"]
[BlackClock "0:00:26"]
[Board "46"]

1. d4 {[%clk 0:03:00]}  Nf6 {[%clk 0:02:55]} 2. c4 {[%clk 0:03:01]}  e6 {[%clk 0:02:56]} 3. Nc3 {[%clk 0:03:01]}  d5 {[%clk 0:02:54]} 4. cxd5 {[%clk 0:03:01]}  exd5 {[%clk 0:02:55]} 5. Bg5 {[%clk 0:03:01]}  c6 {[%clk 0:02:55]} 6. e3 {[%clk 0:03:01]}  Bd6 {[%clk 0:02:53]} 7. Bd3 {[%clk 0:03:01]}  h6 {[%clk 0:02:53]} 8. Bh4 {[%clk 0:03:01]}  O-O {[%clk 0:02:51]} 9. Nge2 {[%clk 0:03:01]}  Be6 {[%clk 0:02:51]} 10. Qc2 {[%clk 0:02:59]}  Nbd7 {[%clk 0:02:51]} 11. h3 {[%clk 0:02:54]}  Re8 {[%clk 0:02:51]} 12. O-O {[%clk 0:02:51]}  Qc7 {[%clk 0:02:49]} 13. Rac1 {[%clk 0:02:49]}  a6 {[%clk 0:02:46]} 14. Bg3 {[%clk 0:02:39]}  Rac8 {[%clk 0:02:45]} 15. Bxd6 {[%clk 0:02:39]}  Qxd6 {[%clk 0:02:45]} 16. Nf4 {[%clk 0:02:38]}  c5 {[%clk 0:02:44]} 17. dxc5 {[%clk 0:02:34]}  Nxc5 {[%clk 0:02:44]} 18. Rfd1 {[%clk 0:02:29]}  Qe5 {[%clk 0:02:35]} 19. Nxe6 {[%clk 0:02:07]}  Nxe6 {[%clk 0:02:33]} 20. Bf5 {[%clk 0:02:00]}  Rc5 {[%clk 0:02:19]} 21. Bxe6 {[%clk 0:01:57]}  fxe6 {[%clk 0:02:18]} 22. Qb3 {[%clk 0:01:50]}  Qc7 {[%clk 0:02:16]} 23. Rd4 {[%clk 0:01:38]}  Ne4 {[%clk 0:02:12]} 24. Rb4 {[%clk 0:00:51]}  b5 {[%clk 0:02:07]} 25. a4 {[%clk 0:00:51]}  bxa4 {[%clk 0:01:34]} 26. Qxa4 {[%clk 0:00:44]}  Qc6 {[%clk 0:01:24]} 27. Qxc6 {[%clk 0:00:26]}  Rxc6 {[%clk 0:01:25]} 28. Ra4 {[%clk 0:00:16]}  Nc5 {[%clk 0:01:17]} 29. Ra2 {[%clk 0:00:11]}  Nd3 {[%clk 0:01:08]} 30. Rca1 {[%clk 0:00:11]}  Nb4 {[%clk 0:01:07]} 31. Ra4 {[%clk 0:00:10]}  Rb8 {[%clk 0:01:07]} 32. Kf1 {[%clk 0:00:07]}  Rbb6 {[%clk 0:01:06]} 33. Ke2 {[%clk 0:00:07]}  Nc2 {[%clk 0:01:05]} 34. R1a2 {[%clk 0:00:07]}  Nb4 {[%clk 0:01:03]} 35. Ra1 {[%clk 0:00:07]}  Kf7 {[%clk 0:01:03]} 36. Kd2 {[%clk 0:00:07]}  Kf6 {[%clk 0:01:00]} 37. R1a3 {[%clk 0:00:07]}  Rb7 {[%clk 0:00:51]} 38. Rb3 {[%clk 0:00:07]}  Rcb6 {[%clk 0:00:51]} 39. Ra5 {[%clk 0:00:06]}  Nc6 {[%clk 0:00:50]} 40. Rxb6 {[%clk 0:00:06]}  Rxb6 {[%clk 0:00:51]} 41. Ra2 {[%clk 0:00:06]}  Ne5 {[%clk 0:00:48]} 42. Kc2 {[%clk 0:00:05]}  Ke7 {[%clk 0:00:44]} 43. b3 {[%clk 0:00:05]}  Nd7 {[%clk 0:00:43]} 44. Ra5 {[%clk 0:00:04]}  Kd6 {[%clk 0:00:42]} 45. Ne2 {[%clk 0:00:01]}  Nc5 {[%clk 0:00:39]} 46. Nd4 {[%clk 0:00:01]}  g6 {[%clk 0:00:36]} 47. f4 {[%clk 0:00:01]}  Ne4 {[%clk 0:00:26]} 48. g4 {[%clk 0:00:01]}  Nf2 {[%clk 0:00:26]} 49. b4 {[%clk 0:00:01]}  Nxh3 {[%clk 0:00:25]} 50. b5 {[%clk 0:00:01]}  axb5 {[%clk 0:00:24]} 51. Nxb5+ {[%clk 0:00:02]}  Ke7 {[%clk 0:00:24]} 52. Nd4 {[%clk 0:00:03]}  Nf2 {[%clk 0:00:23]} 53. Ra7+ {[%clk 0:00:03]}  Kf6 {[%clk 0:00:20]} 54. g5+ {[%clk 0:00:03]}  hxg5 {[%clk 0:00:20]} 55. fxg5+ {[%clk 0:00:04]}  Kxg5 {[%clk 0:00:21]} 56. Nf3+ {[%clk 0:00:04]}  Kf6 {[%clk 0:00:21]} 57. Nd4 {[%clk 0:00:04]}  Ng4 {[%clk 0:00:20]} 58. Kd3 {[%clk 0:00:04]}  Ne5+ {[%clk 0:00:20]} 59. Kd2 {[%clk 0:00:04]}  Nc6 {[%clk 0:00:20]} 60. Nxc6 {[%clk 0:00:04]}  Rxc6 {[%clk 0:00:20]} 61. Ra8 {[%clk 0:00:04]}  g5 {[%clk 0:00:20]} 62. Kd3 {[%clk 0:00:05]}  Rc7 {[%clk 0:00:20]} 63. Rf8+ {[%clk 0:00:05]}  Rf7 {[%clk 0:00:20]} 64. Rg8 {[%clk 0:00:05]}  Rg7 {[%clk 0:00:20]} 65. Rf8+ {[%clk 0:00:05]}  Ke5 {[%clk 0:00:20]} 66. Rf2 {[%clk 0:00:05]}  g4 {[%clk 0:00:21]} 67. Rg2 {[%clk 0:00:06]}  g3 {[%clk 0:00:21]} 68. Ke2 {[%clk 0:00:06]}  Ke4 {[%clk 0:00:22]} 69. Kd2 {[%clk 0:00:07]}  e5 {[%clk 0:00:23]} 70. Rg1 {[%clk 0:00:07]}  g2 {[%clk 0:00:23]} 71. Ke2 {[%clk 0:00:07]}  d4 {[%clk 0:00:23]} 72. exd4 {[%clk 0:00:07]}  exd4 {[%clk 0:00:24]} 73. Kf2 {[%clk 0:00:07]}  d3 {[%clk 0:00:25]} 74. Re1+ {[%clk 0:00:07]}  Kd4 {[%clk 0:00:25]} 75. Kg1 {[%clk 0:00:06]}  d2 {[%clk 0:00:26]} 76. Rd1 {[%clk 0:00:06]}  Kd3 {[%clk 0:00:26]} 77. Ra1 {[%clk 0:00:05]}  Ke2 {[%clk 0:00:26]} 0-1


[Site "https://www.chess.com"]

[Event "Titled Tuesday Blitz November 14 Early 2023"]
[White "Grunberg, Mihai-Lucian"]
[Black "Fier, Alexandr"]
[WhiteFideId "1204149"]
[BlackFideId "2107139"]
[WhiteElo "2554"]
[BlackElo "2806"]
[Result "0-1"]
[Round "5"]
[TimeControl "180+1"]
[Date "2023.11.14"]
[WhiteClock "0:00:15"]
[BlackClock "0:00:53"]
[Board "49"]

1. Nf3 {[%clk 0:03:00]}  Nf6 {[%clk 0:03:00]} 2. g3 {[%clk 0:03:00]}  g6 {[%clk 0:03:01]} 3. Bg2 {[%clk 0:03:01]}  Bg7 {[%clk 0:03:01]} 4. O-O {[%clk 0:03:02]}  O-O {[%clk 0:03:02]} 5. c4 {[%clk 0:03:03]}  d6 {[%clk 0:03:03]} 6. d4 {[%clk 0:03:03]}  Nc6 {[%clk 0:03:03]} 7. Nc3 {[%clk 0:03:03]}  a6 {[%clk 0:03:03]} 8. Re1 {[%clk 0:03:02]}  Rb8 {[%clk 0:03:03]} 9. Rb1 {[%clk 0:03:02]}  b5 {[%clk 0:03:02]} 10. cxb5 {[%clk 0:03:03]}  axb5 {[%clk 0:03:02]} 11. b4 {[%clk 0:03:04]}  e6 {[%clk 0:03:03]} 12. e4 {[%clk 0:03:03]}  Bd7 {[%clk 0:03:00]} 13. d5 {[%clk 0:02:54]}  Ne7 {[%clk 0:02:58]} 14. dxe6 {[%clk 0:02:46]}  Bxe6 {[%clk 0:02:59]} 15. e5 {[%clk 0:02:45]}  dxe5 {[%clk 0:02:56]} 16. Nxe5 {[%clk 0:02:45]}  Qc8 {[%clk 0:02:40]} 17. Qe2 {[%clk 0:02:32]}  Re8 {[%clk 0:02:36]} 18. Nxb5 {[%clk 0:02:23]}  Ned5 {[%clk 0:02:22]} 19. Bd2 {[%clk 0:02:02]}  Bf5 {[%clk 0:02:19]} 20. Rbc1 {[%clk 0:01:54]}  Qa6 {[%clk 0:01:38]} 21. Nxc7 {[%clk 0:01:42]}  Nxc7 {[%clk 0:01:38]} 22. Rxc7 {[%clk 0:01:39]}  Qxa2 {[%clk 0:01:22]} 23. Bc3 {[%clk 0:01:33]}  Qb3 {[%clk 0:01:22]} 24. Qc4 {[%clk 0:01:13]}  Qxc4 {[%clk 0:01:18]} 25. Nxc4 {[%clk 0:01:08]}  Rec8 {[%clk 0:01:17]} 26. Ree7 {[%clk 0:01:02]}  Rxc7 {[%clk 0:01:14]} 27. Rxc7 {[%clk 0:01:01]}  Ne8 {[%clk 0:01:14]} 28. Bxg7 {[%clk 0:00:50]}  Nxc7 {[%clk 0:01:14]} 29. Bc3 {[%clk 0:00:49]}  Nb5 {[%clk 0:01:09]} 30. Bd2 {[%clk 0:00:45]}  Rc8 {[%clk 0:01:08]} 31. Bf1 {[%clk 0:00:38]}  Nd4 {[%clk 0:01:07]} 32. Ne5 {[%clk 0:00:33]}  f6 {[%clk 0:01:01]} 33. Nc4 {[%clk 0:00:19]}  Be6 {[%clk 0:00:56]} 34. Be3 {[%clk 0:00:17]}  Nf3+ {[%clk 0:00:52]} 35. Kg2 {[%clk 0:00:15]}  Ne1+ {[%clk 0:00:53]} 0-1


[Site "https://www.chess.com"]

[Event "Titled Tuesday Blitz November 14 Early 2023"]
[White "Karas, Marek"]
[Black "Narayanan, Srinath"]
[WhiteFideId "14928558"]
[BlackFideId "5018420"]
[WhiteElo "2548"]
[BlackElo "2794"]
[Result "0-1"]
[Round "5"]
[TimeControl "180+1"]
[Date "2023.11.14"]
[WhiteClock "0:00:04"]
[BlackClock "0:00:13"]
[Board "50"]

1. d4 {[%clk 0:03:00]}  Nf6 {[%clk 0:02:58]} 2. Nf3 {[%clk 0:03:00]}  d5 {[%clk 0:02:58]} 3. c4 {[%clk 0:03:00]}  e6 {[%clk 0:02:58]} 4. Nc3 {[%clk 0:03:00]}  Nbd7 {[%clk 0:02:56]} 5. Bg5 {[%clk 0:02:58]}  Bb4 {[%clk 0:02:54]} 6. cxd5 {[%clk 0:02:56]}  exd5 {[%clk 0:02:55]} 7. e3 {[%clk 0:02:56]}  h6 {[%clk 0:02:50]} 8. Bf4 {[%clk 0:02:47]}  Nh5 {[%clk 0:02:37]} 9. Be5 {[%clk 0:02:40]}  Nxe5 {[%clk 0:02:37]} 10. Nxe5 {[%clk 0:02:39]}  Bxc3+ {[%clk 0:02:31]} 11. bxc3 {[%clk 0:02:39]}  Nf6 {[%clk 0:02:32]} 12. Bd3 {[%clk 0:02:28]}  O-O {[%clk 0:02:30]} 13. c4 {[%clk 0:02:25]}  c5 {[%clk 0:02:26]} 14. Nf3 {[%clk 0:02:18]}  Bg4 {[%clk 0:02:10]} 15. dxc5 {[%clk 0:02:13]}  Bxf3 {[%clk 0:02:04]} 16. Qxf3 {[%clk 0:02:07]}  Qa5+ {[%clk 0:02:03]} 17. Ke2 {[%clk 0:02:04]}  Qxc5 {[%clk 0:01:56]} 18. Rhc1 {[%clk 0:01:56]}  d4 {[%clk 0:01:53]} 19. Kf1 {[%clk 0:01:35]}  dxe3 {[%clk 0:01:50]} 20. Qxe3 {[%clk 0:01:36]}  Qxe3 {[%clk 0:01:42]} 21. fxe3 {[%clk 0:01:37]}  Ng4 {[%clk 0:01:43]} 22. Be4 {[%clk 0:01:21]}  Rab8 {[%clk 0:01:27]} 23. h3 {[%clk 0:01:07]}  Rfe8 {[%clk 0:01:15]} 24. Bf3 {[%clk 0:01:01]}  Nxe3+ {[%clk 0:01:15]} 25. Kf2 {[%clk 0:01:01]}  Nf5 {[%clk 0:01:15]} 26. Rab1 {[%clk 0:00:58]}  b6 {[%clk 0:01:13]} 27. c5 {[%clk 0:00:43]}  bxc5 {[%clk 0:01:11]} 28. Rxb8 {[%clk 0:00:43]}  Rxb8 {[%clk 0:01:12]} 29. Rxc5 {[%clk 0:00:43]}  Rb2+ {[%clk 0:01:12]} 30. Kg1 {[%clk 0:00:38]}  Nd4 {[%clk 0:00:56]} 31. Be4 {[%clk 0:00:25]}  g6 {[%clk 0:00:50]} 32. Bd5 {[%clk 0:00:22]}  Rb5 {[%clk 0:00:32]} 33. Rc8+ {[%clk 0:00:17]}  Kg7 {[%clk 0:00:32]} 34. Bc4 {[%clk 0:00:17]}  Rb7 {[%clk 0:00:32]} 35. a4 {[%clk 0:00:13]}  Nf5 {[%clk 0:00:31]} 36. Bd5 {[%clk 0:00:11]}  Rb1+ {[%clk 0:00:22]} 37. Kh2 {[%clk 0:00:11]}  Ne3 {[%clk 0:00:18]} 38. Rc5 {[%clk 0:00:09]}  Ra1 {[%clk 0:00:09]} 39. Bc6 {[%clk 0:00:07]}  Nf1+ {[%clk 0:00:07]} 40. Kg1 {[%clk 0:00:06]}  Ng3+ {[%clk 0:00:07]} 41. Kh2 {[%clk 0:00:05]}  Nf5 {[%clk 0:00:07]} 42. Ra5 {[%clk 0:00:05]}  h5 {[%clk 0:00:07]} 43. g4 {[%clk 0:00:03]}  hxg4 {[%clk 0:00:06]} 44. hxg4 {[%clk 0:00:04]}  Ra2+ {[%clk 0:00:07]} 45. Kg1 {[%clk 0:00:04]}  Ne3 {[%clk 0:00:06]} 46. g5 {[%clk 0:00:03]}  Rc2 {[%clk 0:00:05]} 47. Bb7 {[%clk 0:00:02]}  Rc7 {[%clk 0:00:04]} 48. Rxa7 {[%clk 0:00:02]}  Nc4 {[%clk 0:00:04]} 49. a5 {[%clk 0:00:01]}  Nxa5 {[%clk 0:00:03]} 50. Rxa5 {[%clk 0:00:01]}  Rxb7 {[%clk 0:00:04]} 51. Kf2 {[%clk 0:00:02]}  Rb3 {[%clk 0:00:04]} 52. Rd5 {[%clk 0:00:01]}  Kf8 {[%clk 0:00:05]} 53. Re5 {[%clk 0:00:02]}  Rc3 {[%clk 0:00:04]} 54. Kg2 {[%clk 0:00:02]}  Rd3 {[%clk 0:00:04]} 55. Kf2 {[%clk 0:00:03]}  Kg8 {[%clk 0:00:05]} 56. Kg2 {[%clk 0:00:03]}  Kg7 {[%clk 0:00:06]} 57. Kf2 {[%clk 0:00:03]}  Kf8 {[%clk 0:00:06]} 58. Kg2 {[%clk 0:00:03]}  Rd6 {[%clk 0:00:07]} 59. Kf2 {[%clk 0:00:04]}  Re6 {[%clk 0:00:07]} 60. Ra5 {[%clk 0:00:03]}  Re4 {[%clk 0:00:07]} 61. Kf3 {[%clk 0:00:04]}  Rh4 {[%clk 0:00:07]} 62. Kg3 {[%clk 0:00:04]}  Rd4 {[%clk 0:00:07]} 63. Kf3 {[%clk 0:00:04]}  Ke7 {[%clk 0:00:07]} 64. Kg3 {[%clk 0:00:05]}  Ke6 {[%clk 0:00:07]} 65. Kf3 {[%clk 0:00:05]}  Rd5 {[%clk 0:00:07]} 66. Ra6+ {[%clk 0:00:03]}  Kf5 {[%clk 0:00:07]} 67. Rf6+ {[%clk 0:00:03]}  Kxg5 {[%clk 0:00:07]} 68. Rxf7 {[%clk 0:00:04]}  Rf5+ {[%clk 0:00:08]} 69. Rxf5+ {[%clk 0:00:03]}  Kxf5 {[%clk 0:00:09]} 70. Kg3 {[%clk 0:00:03]}  Kg5 {[%clk 0:00:09]} 71. Kf3 {[%clk 0:00:02]}  Kh4 {[%clk 0:00:10]} 72. Kg2 {[%clk 0:00:03]}  Kg4 {[%clk 0:00:10]} 73. Kf2 {[%clk 0:00:03]}  Kh3 {[%clk 0:00:10]} 74. Kg1 {[%clk 0:00:03]}  Kg3 {[%clk 0:00:09]} 75. Kh1 {[%clk 0:00:04]}  Kf2 {[%clk 0:00:09]} 76. Kh2 {[%clk 0:00:04]}  g5 {[%clk 0:00:10]} 77. Kh3 {[%clk 0:00:03]}  Kf3 {[%clk 0:00:11]} 78. Kh2 {[%clk 0:00:04]}  g4 {[%clk 0:00:11]} 79. Kg1 {[%clk 0:00:02]}  Kg3 {[%clk 0:00:11]} 80. Kh1 {[%clk 0:00:01]}  Kh3 {[%clk 0:00:11]} 81. Kg1 {[%clk 0:00:01]}  Kg3 {[%clk 0:00:10]} 82. Kh1 {[%clk 0:00:02]}  Kf2 {[%clk 0:00:10]} 83. Kh2 {[%clk 0:00:02]}  g3+ {[%clk 0:00:11]} 84. Kh1 {[%clk 0:00:02]}  g2+ {[%clk 0:00:11]} 85. Kh2 {[%clk 0:00:03]}  g1=Q+ {[%clk 0:00:12]} 86. Kh3 {[%clk 0:00:04]}  Qg3# {[%clk 0:00:13]} 0-1


[Site "https://www.chess.com"]

[Event "Titled Tuesday Blitz November 14 Early 2023"]
[White "Toktomushev, Teimur"]
[Black "Budisavljevic, Luka"]
[WhiteFideId "14176726"]
[BlackFideId "960047"]
[WhiteElo "2526"]
[BlackElo "2772"]
[Result "0-1"]
[Round "5"]
[TimeControl "180+1"]
[Date "2023.11.14"]
[WhiteClock "0:00:00"]
[BlackClock "0:00:48"]
[Board "52"]

1. d4 {[%clk 0:01:57]}  Nf6 {[%clk 0:02:59]} 2. c4 {[%clk 0:01:58]}  a6 {[%clk 0:03:00]} 3. Nc3 {[%clk 0:01:56]}  c5 {[%clk 0:03:00]} 4. d5 {[%clk 0:01:56]}  b5 {[%clk 0:03:00]} 5. cxb5 {[%clk 0:01:55]}  axb5 {[%clk 0:03:01]} 6. Nxb5 {[%clk 0:01:55]}  Qa5+ {[%clk 0:03:00]} 7. Nc3 {[%clk 0:01:54]}  Bb7 {[%clk 0:03:01]} 8. Bd2 {[%clk 0:01:33]}  Qb6 {[%clk 0:03:01]} 9. e4 {[%clk 0:01:30]}  e6 {[%clk 0:03:00]} 10. dxe6 {[%clk 0:01:18]}  fxe6 {[%clk 0:03:01]} 11. Bd3 {[%clk 0:01:08]}  Nc6 {[%clk 0:03:01]} 12. Nf3 {[%clk 0:01:02]}  Nb4 {[%clk 0:03:01]} 13. Bc4 {[%clk 0:00:38]}  Nxe4 {[%clk 0:02:57]} 14. Nxe4 {[%clk 0:00:27]}  Bxe4 {[%clk 0:02:58]} 15. O-O {[%clk 0:00:27]}  Bd6 {[%clk 0:02:44]} 16. Ng5 {[%clk 0:00:09]}  Bg6 {[%clk 0:02:43]} 17. Bxb4 {[%clk 0:00:03]}  cxb4 {[%clk 0:02:42]} 18. Nxe6 {[%clk 0:00:02]}  dxe6 {[%clk 0:02:40]} 19. Bxe6 {[%clk 0:00:03]}  Ra7 {[%clk 0:02:32]} 20. Re1 {[%clk 0:00:03]}  Re7 {[%clk 0:02:25]} 21. Qa4+ {[%clk 0:00:03]}  Kf8 {[%clk 0:02:26]} 22. Qa8+ {[%clk 0:00:03]}  Re8 {[%clk 0:02:25]} 23. Qf3+ {[%clk 0:00:04]}  Ke7 {[%clk 0:02:23]} 24. Bf7+ {[%clk 0:00:02]}  Kd7 {[%clk 0:02:20]} 25. Qg4+ {[%clk 0:00:02]}  Kd8 {[%clk 0:02:17]} 26. Bxe8 {[%clk 0:00:03]}  Rxe8 {[%clk 0:02:15]} 27. Rxe8+ {[%clk 0:00:02]}  Bxe8 {[%clk 0:02:06]} 28. Qxg7 {[%clk 0:00:02]}  Qc5 {[%clk 0:01:55]} 29. Qf6+ {[%clk 0:00:02]}  Kc7 {[%clk 0:01:55]} 30. Qg7+ {[%clk 0:00:01]}  Kb6 {[%clk 0:01:53]} 31. Qh6 {[%clk 0:00:02]}  Bc6 {[%clk 0:01:49]} 32. Rd1 {[%clk 0:00:03]}  Be5 {[%clk 0:01:47]} 33. Qxh7 {[%clk 0:00:02]}  Bxb2 {[%clk 0:01:45]} 34. Qd3 {[%clk 0:00:02]}  Qc3 {[%clk 0:01:25]} 35. Qe2 {[%clk 0:00:01]}  Qg7 {[%clk 0:01:21]} 36. f3 {[%clk 0:00:01]}  Bd4+ {[%clk 0:01:21]} 37. Kh1 {[%clk 0:00:02]}  Bc5 {[%clk 0:01:17]} 38. Qc4 {[%clk 0:00:02]}  Qe5 {[%clk 0:01:14]} 39. Rc1 {[%clk 0:00:03]}  Bb5 {[%clk 0:01:13]} 40. Qh4 {[%clk 0:00:02]}  Bd6 {[%clk 0:01:10]} 41. Qh6 {[%clk 0:00:02]}  Ka5 {[%clk 0:01:08]} 42. Rd1 {[%clk 0:00:02]}  Bc7 {[%clk 0:01:06]} 43. Qh3 {[%clk 0:00:02]}  Ka4 {[%clk 0:01:03]} 44. Qh7 {[%clk 0:00:01]}  Qe2 {[%clk 0:00:56]} 45. Rc1 {[%clk 0:00:01]}  Bf4 {[%clk 0:00:54]} 46. Qc2+ {[%clk 0:00:01]}  Qxc2 {[%clk 0:00:53]} 47. Rxc2 {[%clk 0:00:00]}  Bd3 {[%clk 0:00:48]} 0-1


[Site "https://www.chess.com"]

[Event "Titled Tuesday Blitz November 14 Early 2023"]
[White "Nigmatov, Ortik"]
[Black "arenal72"]
[WhiteFideId "14202131"]
[WhiteElo "2767"]
[BlackElo "2489"]
[Result "1-0"]
[Round "5"]
[TimeControl "180+1"]
[Date "2023.11.14"]
[WhiteClock "0:00:04"]
[BlackClock "0:00:00"]
[Board "53"]

1. e4 {[%clk 0:03:00]}  Nc6 {[%clk 0:02:58]} 2. Nf3 {[%clk 0:02:59]}  d6 {[%clk 0:02:57]} 3. d4 {[%clk 0:02:56]}  Nf6 {[%clk 0:02:55]} 4. Nc3 {[%clk 0:02:56]}  g6 {[%clk 0:02:55]} 5. h3 {[%clk 0:02:53]}  Bg7 {[%clk 0:02:54]} 6. Bc4 {[%clk 0:02:53]}  O-O {[%clk 0:02:53]} 7. O-O {[%clk 0:02:53]}  Nxe4 {[%clk 0:02:53]} 8. Nxe4 {[%clk 0:02:42]}  d5 {[%clk 0:02:52]} 9. Bxd5 {[%clk 0:02:40]}  Qxd5 {[%clk 0:02:51]} 10. Nc3 {[%clk 0:02:40]}  Qd8 {[%clk 0:02:44]} 11. Be3 {[%clk 0:02:39]}  e5 {[%clk 0:02:17]} 12. d5 {[%clk 0:02:29]}  Ne7 {[%clk 0:02:10]} 13. Bc5 {[%clk 0:02:27]}  b6 {[%clk 0:02:07]} 14. Ba3 {[%clk 0:02:26]}  Re8 {[%clk 0:02:04]} 15. Re1 {[%clk 0:02:25]}  Nf5 {[%clk 0:01:46]} 16. Qd3 {[%clk 0:02:20]}  a5 {[%clk 0:01:24]} 17. Rad1 {[%clk 0:02:17]}  Ba6 {[%clk 0:01:23]} 18. Qd2 {[%clk 0:02:10]}  Nd6 {[%clk 0:01:19]} 19. b3 {[%clk 0:02:02]}  h6 {[%clk 0:01:18]} 20. Bb2 {[%clk 0:01:59]}  f5 {[%clk 0:01:14]} 21. a4 {[%clk 0:01:55]}  Qd7 {[%clk 0:01:07]} 22. Nb1 {[%clk 0:01:39]}  Ne4 {[%clk 0:01:02]} 23. Qe3 {[%clk 0:01:32]}  Qd6 {[%clk 0:00:34]} 24. c4 {[%clk 0:01:12]}  c5 {[%clk 0:00:31]} 25. dxc6 {[%clk 0:01:09]}  Qxc6 {[%clk 0:00:31]} 26. Nbd2 {[%clk 0:01:08]}  Nxd2 {[%clk 0:00:30]} 27. Qxd2 {[%clk 0:01:03]}  Bb7 {[%clk 0:00:26]} 28. Qd6 {[%clk 0:01:00]}  e4 {[%clk 0:00:16]} 29. Qxc6 {[%clk 0:00:56]}  Bxc6 {[%clk 0:00:15]} 30. Bxg7 {[%clk 0:00:40]}  exf3 {[%clk 0:00:14]} 31. Be5 {[%clk 0:00:41]}  Rad8 {[%clk 0:00:03]} 32. Rxd8 {[%clk 0:00:39]}  Rxd8 {[%clk 0:00:04]} 33. gxf3 {[%clk 0:00:40]}  Bxf3 {[%clk 0:00:03]} 34. Bc7 {[%clk 0:00:40]}  Rd3 {[%clk 0:00:04]} 35. Rb1 {[%clk 0:00:27]}  Be4 {[%clk 0:00:03]} 36. Rb2 {[%clk 0:00:20]}  Rxh3 {[%clk 0:00:02]} 37. f3 {[%clk 0:00:16]}  Bxf3 {[%clk 0:00:03]} 38. Rd2 {[%clk 0:00:16]}  Be4 {[%clk 0:00:03]} 39. Bxb6 {[%clk 0:00:15]}  Rxb3 {[%clk 0:00:02]} 40. c5 {[%clk 0:00:15]}  h5 {[%clk 0:00:02]} 41. Bxa5 {[%clk 0:00:15]}  h4 {[%clk 0:00:03]} 42. Bc7 {[%clk 0:00:14]}  h3 {[%clk 0:00:03]} 43. Kh2 {[%clk 0:00:13]}  g5 {[%clk 0:00:03]} 44. Re2 {[%clk 0:00:10]}  g4 {[%clk 0:00:03]} 45. Bd6 {[%clk 0:00:10]}  Rb1 {[%clk 0:00:03]} 46. a5 {[%clk 0:00:09]}  Rh1+ {[%clk 0:00:03]} 47. Kg3 {[%clk 0:00:09]}  Rg1+ {[%clk 0:00:02]} 48. Kh2 {[%clk 0:00:10]}  Ra1 {[%clk 0:00:02]} 49. Bc7 {[%clk 0:00:09]}  Ra3 {[%clk 0:00:03]} 50. Rb2 {[%clk 0:00:05]}  Kf7 {[%clk 0:00:02]} 51. Rd2 {[%clk 0:00:04]}  Ke6 {[%clk 0:00:02]} 52. Rd6+ {[%clk 0:00:03]}  Ke7 {[%clk 0:00:03]} 53. Rd2 {[%clk 0:00:04]}  Kf7 {[%clk 0:00:00]} 54. Rd7+ {[%clk 0:00:04]} 1-0


[Site "https://www.chess.com"]

[Event "Titled Tuesday Blitz November 14 Early 2023"]
[White "Javakhadze, Zurab"]
[Black "Mazurkiewicz, Michal"]
[WhiteFideId "13603647"]
[BlackFideId "1124943"]
[WhiteElo "2767"]
[BlackElo "2460"]
[Result "1-0"]
[Round "5"]
[TimeControl "180+1"]
[Date "2023.11.14"]
[WhiteClock "0:00:07"]
[BlackClock "0:00:09"]
[Board "54"]

1. Nf3 {[%clk 0:03:00]}  Nf6 {[%clk 0:02:58]} 2. c4 {[%clk 0:03:00]}  g6 {[%clk 0:02:58]} 3. Nc3 {[%clk 0:03:01]}  Bg7 {[%clk 0:02:58]} 4. e4 {[%clk 0:03:01]}  d6 {[%clk 0:02:59]} 5. d4 {[%clk 0:03:01]}  O-O {[%clk 0:03:00]} 6. Be2 {[%clk 0:03:02]}  e5 {[%clk 0:03:00]} 7. Be3 {[%clk 0:03:03]}  Nc6 {[%clk 0:02:58]} 8. O-O {[%clk 0:02:57]}  Ng4 {[%clk 0:02:57]} 9. Bg5 {[%clk 0:02:57]}  f6 {[%clk 0:02:37]} 10. Bc1 {[%clk 0:02:54]}  f5 {[%clk 0:02:17]} 11. dxe5 {[%clk 0:02:50]}  Ngxe5 {[%clk 0:02:12]} 12. exf5 {[%clk 0:02:39]}  Bxf5 {[%clk 0:02:12]} 13. Nxe5 {[%clk 0:02:39]}  Nxe5 {[%clk 0:02:13]} 14. Qd5+ {[%clk 0:02:37]}  Kh8 {[%clk 0:02:11]} 15. Qxb7 {[%clk 0:02:36]}  Qh4 {[%clk 0:02:05]} 16. Qd5 {[%clk 0:02:14]}  Rae8 {[%clk 0:02:03]} 17. c5 {[%clk 0:01:48]}  dxc5 {[%clk 0:01:52]} 18. Qxc5 {[%clk 0:01:35]}  Nd3 {[%clk 0:01:39]} 19. Bxd3 {[%clk 0:00:40]}  Bd4 {[%clk 0:01:39]} 20. Bg5 {[%clk 0:00:31]}  Bxc5 {[%clk 0:00:50]} 21. Bxh4 {[%clk 0:00:29]}  Bxd3 {[%clk 0:00:50]} 22. Rfd1 {[%clk 0:00:29]}  Ba6 {[%clk 0:00:46]} 23. Rac1 {[%clk 0:00:24]}  Rf5 {[%clk 0:00:25]} 24. Nd5 {[%clk 0:00:18]}  Bd6 {[%clk 0:00:18]} 25. Nxc7 {[%clk 0:00:13]}  Bxc7 {[%clk 0:00:15]} 26. Rxc7 {[%clk 0:00:14]}  Rd5 {[%clk 0:00:14]} 27. Rcc1 {[%clk 0:00:08]}  Rxd1+ {[%clk 0:00:12]} 28. Rxd1 {[%clk 0:00:09]}  Re2 {[%clk 0:00:13]} 29. f3 {[%clk 0:00:07]}  Rxb2 {[%clk 0:00:09]} 30. Bf6+ {[%clk 0:00:07]} 1-0


[Site "https://www.chess.com"]

[Event "Titled Tuesday Blitz November 14 Early 2023"]
[White "Begunov, Konstantin"]
[Black "Saydaliev, Saidakbar"]
[WhiteFideId "4118510"]
[BlackFideId "14203693"]
[WhiteElo "2448"]
[BlackElo "2759"]
[Result "0-1"]
[Round "5"]
[TimeControl "180+1"]
[Date "2023.11.14"]
[WhiteClock "0:00:21"]
[BlackClock "0:00:09"]
[Board "55"]

1. d4 {[%clk 0:03:00]}  Nf6 {[%clk 0:02:59]} 2. c4 {[%clk 0:03:01]}  e6 {[%clk 0:02:59]} 3. Nf3 {[%clk 0:03:01]}  d5 {[%clk 0:02:57]} 4. Nc3 {[%clk 0:03:01]}  Bb4 {[%clk 0:02:56]} 5. Qa4+ {[%clk 0:02:59]}  Nc6 {[%clk 0:02:56]} 6. Ne5 {[%clk 0:03:00]}  Bd7 {[%clk 0:02:41]} 7. Nxc6 {[%clk 0:02:59]}  Bxc3+ {[%clk 0:02:41]} 8. bxc3 {[%clk 0:03:00]}  Bxc6 {[%clk 0:02:40]} 9. Qb3 {[%clk 0:03:00]}  dxc4 {[%clk 0:02:32]} 10. Qxc4 {[%clk 0:03:01]}  O-O {[%clk 0:02:32]} 11. Bg5 {[%clk 0:02:52]}  h6 {[%clk 0:02:17]} 12. Bh4 {[%clk 0:02:52]}  Re8 {[%clk 0:02:07]} 13. Rd1 {[%clk 0:02:41]}  Qe7 {[%clk 0:02:05]} 14. f3 {[%clk 0:02:33]}  a6 {[%clk 0:01:23]} 15. Qb3 {[%clk 0:02:31]}  Qd7 {[%clk 0:01:08]} 16. Rd2 {[%clk 0:02:20]}  Nd5 {[%clk 0:01:06]} 17. e4 {[%clk 0:02:14]}  Nb6 {[%clk 0:00:55]} 18. Be2 {[%clk 0:01:59]}  Ba4 {[%clk 0:00:52]} 19. Qb4 {[%clk 0:01:53]}  Qc6 {[%clk 0:00:40]} 20. c4 {[%clk 0:01:46]}  a5 {[%clk 0:00:27]} 21. Qc3 {[%clk 0:01:42]}  Bb5 {[%clk 0:00:18]} 22. O-O {[%clk 0:01:34]}  Bxc4 {[%clk 0:00:18]} 23. Rc1 {[%clk 0:01:23]}  Bxe2 {[%clk 0:00:17]} 24. Qxc6 {[%clk 0:01:22]}  bxc6 {[%clk 0:00:18]} 25. Rxe2 {[%clk 0:01:23]}  e5 {[%clk 0:00:16]} 26. dxe5 {[%clk 0:01:19]}  Rxe5 {[%clk 0:00:16]} 27. Rxc6 {[%clk 0:01:19]}  f5 {[%clk 0:00:15]} 28. Bg3 {[%clk 0:01:18]}  Rb5 {[%clk 0:00:14]} 29. Bxc7 {[%clk 0:01:14]}  Na4 {[%clk 0:00:14]} 30. e5 {[%clk 0:01:12]}  Rc8 {[%clk 0:00:13]} 31. e6 {[%clk 0:01:11]}  Nc5 {[%clk 0:00:11]} 32. Re5 {[%clk 0:01:02]}  Rb1+ {[%clk 0:00:10]} 33. Kf2 {[%clk 0:01:02]}  Nd3+ {[%clk 0:00:10]} 34. Kg3 {[%clk 0:00:54]}  Nxe5 {[%clk 0:00:11]} 35. Rc5 {[%clk 0:00:42]}  Rb7 {[%clk 0:00:11]} 36. Rxe5 {[%clk 0:00:33]}  Rbxc7 {[%clk 0:00:10]} 37. Rxf5 {[%clk 0:00:32]}  Rc5 {[%clk 0:00:10]} 38. Kf4 {[%clk 0:00:23]}  Rxf5+ {[%clk 0:00:09]} 39. Kxf5 {[%clk 0:00:24]}  Rc5+ {[%clk 0:00:09]} 40. Ke4 {[%clk 0:00:23]}  Kf8 {[%clk 0:00:09]} 41. f4 {[%clk 0:00:23]}  Ke7 {[%clk 0:00:09]} 42. f5 {[%clk 0:00:24]}  Rc2 {[%clk 0:00:09]} 43. g4 {[%clk 0:00:21]}  Rxa2 {[%clk 0:00:09]} 0-1


[Site "https://www.chess.com"]